bitfinex-derivatives/quotes_SOLF0:USTF0_20220109
["timestamp","ask_amount","ask_price","bid_price","bid_amount"]
[1641721478333,7.179524,139.37,139.28,49.8726]
[1641721478533,7.179524,139.37,139.3,4.0]
[1641721478735,7.17772036,139.4,139.34,27.66479]
[1641721480137,7.17772036,139.4,139.32,27.66479]
[1641721480938,27.66479,139.37,139.32,27.66479]
[1641721481335,34.84251036,139.4,139.32,27.66479]
[1641721481740,7.17772036,139.4,139.32,27.66479]
[1641721481938,130.62044442,139.41,139.32,27.66479]
[1641721482639,134.62044442,139.41,139.32,27.66479]
[1641721482840,130.62044442,139.41,139.32,27.66479]
[1641721483040,47.8526,139.42,139.32,27.66479]
[1641721483942,4.0,139.41,139.32,27.66479]
[1641721484141,20.15546277,139.41,139.32,27.66479]
[1641721484843,27.66479,139.4,139.32,27.66479]
[1641721486345,22.31869065,139.41,139.32,27.66479]
[1641721486945,22.31869065,139.41,139.35,27.66479]
[1641721487346,7.17746277,139.41,139.35,27.66479]
[1641721488246,22.31869065,139.41,139.35,27.66479]
[1641721489848,15.14122788,139.41,139.35,27.66479]
[1641721490051,2.400294,139.4,139.35,27.66479]
[1641721490750,15.14122788,139.41,139.35,27.66479]
[1641721492553,19.14122788,139.41,139.35,27.66479]
[1641721492755,26.31843308,139.41,139.33,50.3376]
[1641721492958,27.66479,139.38,139.33,50.3376]
[1641721493155,49.20631188,139.4,139.32,27.66479]
[1641721493357,16.53800858,139.38,139.32,27.66479]
[1641721494260,15.14122788,139.37,139.32,27.66479]
[1641721494858,17.54152188,139.37,139.32,27.66479]
[1641721497767,17.54152188,139.37,139.3,47.514]
[1641721498067,21.54152188,139.37,139.3,47.514]
[1641721498467,7.18029726,139.35,139.3,47.514]
[1641721498668,13.18929726,139.35,139.27,63.12922788]
[1641721498870,27.66479,139.33,139.27,63.12922788]
[1641721499069,27.66479,139.33,139.27,15.14122788]
[1641721499267,27.66479,139.33,139.26,27.66479]
[1641721499767,2.400294,139.34,139.26,27.66479]
[1641721500169,22.32152514,139.35,139.26,27.66479]
[1641721500867,2.40457484,139.34,139.26,27.66479]
[1641721501167,2.40457484,139.34,139.26,31.66479]
[1641721501769,7.18029726,139.35,139.26,46.80601788]
[1641721502467,7.18029726,139.35,139.26,42.80601788]
[1641721503468,7.18029726,139.35,139.26,53.32561617]
[1641721504068,2.53763019,139.34,139.27,4.07790663]
[1641721504873,27.66479,139.33,139.27,4.07790663]
[1641721505272,27.66479,139.33,139.26,42.80601788]
[1641721505772,27.66479,139.33,139.26,27.66479]
[1641721506173,22.32152514,139.35,139.26,27.66479]
[1641721506375,22.32152514,139.35,139.26,31.66479]
[1641721506575,22.32152514,139.35,139.26,27.66479]
[1641721506977,7.18029726,139.35,139.29,27.66479]
[1641721512786,65.86162788,139.38,139.29,35.00279]
[1641721512985,15.14122788,139.37,139.33,27.66479]
[1641721513187,15.14122788,139.37,139.33,35.80579]
[1641721514087,2.40454021,139.38,139.33,35.80579]
[1641721515187,15.14122788,139.39,139.33,35.80579]
[1641721515991,17.54576809,139.4,139.33,35.80579]
[1641721517994,17.54576809,139.4,139.34,4.0]
[1641721517995,15.14122788,139.4,139.34,4.0]
[1641721518298,40.08934292,139.43,139.35,4.0]
[1641721518995,40.08934292,139.43,139.4,27.66479]
[1641721519194,40.08934292,139.43,139.4,36.23379]
[1641721519395,7.1751453,139.45,139.4,36.23379]
[1641721520800,2.5357899,139.44,139.4,36.23379]
[1641721521402,2.5357899,139.44,139.4,8.569]
[1641721521599,2.5357899,139.44,139.38,27.66479]
[1641721523000,2.5357899,139.44,139.42,27.66479]
[1641721523301,2.5357899,139.45,139.42,34.94379]
[1641721523700,2.5357899,139.43,139.42,34.94379]
[1641721524101,2.5357899,139.44,139.42,34.94379]
[1641721524304,40.08934292,139.51,139.42,38.94379]
[1641721524504,40.08934292,139.51,139.43,4.0]
[1641721524705,40.08934292,139.51,139.44,4.0]
[1641721524904,68.77757358,139.54,139.44,4.0]
[1641721525108,40.08934292,139.54,139.49,27.66479]
[1641721525307,40.08934292,139.54,139.49,36.73379]
[1641721525507,1.77326433,139.53,139.49,36.73379]
[1641721526909,1.77326433,139.55,139.49,36.73379]
[1641721527109,7.16922967,139.57,139.54,27.66479]
[1641721527309,7.16922967,139.57,139.54,34.85279]
[1641721528009,7.16922967,139.57,139.54,7.188]
[1641721528509,7.16922967,139.57,139.49,27.66479]
[1641721534520,11.16922967,139.57,139.49,27.66479]
[1641721534719,7.16922967,139.57,139.49,27.66479]
[1641721536120,11.16922967,139.57,139.47,66.75899]
[1641721536322,16.99722967,139.57,139.47,66.75899]
[1641721537223,16.99722967,139.57,139.47,94.42378]
[1641721537423,11.16922967,139.57,139.47,94.42378]
[1641721539026,20.87838187,139.57,139.47,94.42378]
[1641721539926,11.16922967,139.57,139.47,94.42378]
[1641721540728,4.0,139.54,139.47,55.32958]
[1641721540930,16.62577193,139.54,139.47,55.32958]
[1641721542030,7.17077193,139.54,139.47,55.32958]
[1641721542632,1.77569212,139.53,139.47,55.32958]
[1641721543031,1.77569212,139.53,139.5,27.66479]
[1641721543233,1.77569212,139.53,139.5,34.49179]
[1641721543432,1.77569212,139.53,139.5,6.827]
[1641721543632,1.77569212,139.56,139.5,6.827]
[1641721544236,1.77569212,139.56,139.47,27.66479]
[1641721546035,5.77569212,139.56,139.47,27.66479]
[1641721546237,13.87569212,139.56,139.47,27.66479]
[1641721546435,7.17051484,139.54,139.47,27.66479]
[1641721546837,89.14500705,139.57,139.47,27.66479]
[1641721546838,1.77569212,139.53,139.47,27.66479]
[1641721547437,79.2634298,139.56,139.47,27.66479]
[1641721547841,11.50929688,139.55,139.47,27.66479]
[1641721548238,1.77569212,139.54,139.47,27.66479]
[1641721548842,15.19109535,139.53,139.47,27.66479]
[1641721549039,15.19109535,139.53,139.5,27.66479]
[1641721549240,15.19109535,139.53,139.5,36.76079]
[1641721549442,1.77569212,139.52,139.5,36.76079]
[1641721550342,1.77569212,139.53,139.5,36.76079]
[1641721551043,16.96678747,139.53,139.5,36.76079]
[1641721551642,15.19109535,139.52,139.5,36.76079]
[1641721551848,16.96678747,139.52,139.5,36.76079]
[1641721552343,1.77569212,139.51,139.5,36.76079]
[1641721553145,16.96678747,139.51,139.5,36.76079]
[1641721555244,1.77569212,139.51,139.5,36.76079]
[1641721556148,1.77569212,139.53,139.5,36.76079]
[1641721558751,15.251458,139.51,139.5,36.76079]
[1641721559150,17.02715012,139.51,139.5,36.76079]
[1641721559450,1.77569212,139.51,139.5,27.66479]
[1641721560051,1.77569212,139.51,139.47,27.66479]
[1641721560251,4.18082459,139.51,139.47,27.66479]
[1641721560655,1.77569212,139.5,139.47,27.66479]
[1641721561154,1.77569212,139.5,139.47,55.32958]
[1641721561855,2.40513247,139.49,139.47,55.32958]
[1641721562457,1.77569212,139.48,139.47,55.32958]
[1641721563757,4.18082459,139.48,139.47,55.32958]
[1641721564658,4.18082459,139.48,139.47,27.66479]
[1641721565259,4.18082459,139.48,139.44,27.66479]
[1641721565862,13.63282459,139.48,139.44,27.66479]
[1641721566060,1.77569212,139.47,139.44,27.66479]
[1641721566861,19.43669809,139.47,139.44,27.66479]
[1641721567265,26.23669809,139.47,139.39,84.34818535]
[1641721567462,4.0,139.45,139.39,84.34818535]
[1641721567663,4.0,139.45,139.39,42.85588535]
[1641721568063,1.77569212,139.44,139.39,42.85588535]
[1641721568261,8.28869212,139.44,139.39,42.85588535]
[1641721568662,24.17400597,139.44,139.39,27.66479]
[1641721569262,1.77569212,139.43,139.39,27.66479]
[1641721569561,4.18082459,139.43,139.39,27.66479]
[1641721570161,1.77569212,139.42,139.39,27.66479]
[1641721570761,4.18082459,139.42,139.39,27.66479]
[1641721571463,1.77569212,139.42,139.39,27.66479]
[1641721571662,1.77569212,139.41,139.39,27.66479]
[1641721572061,1.77569212,139.44,139.39,27.66479]
[1641721573363,2.39786893,139.43,139.39,27.66479]
[1641721573764,1.77569212,139.42,139.39,27.66479]
[1641721574666,5.77569212,139.45,139.39,27.66479]
[1641721574868,1.77569212,139.45,139.39,27.66479]
[1641721575067,1.77569212,139.44,139.39,27.66479]
[1641721575265,1.77569212,139.44,139.37,39.7403]
[1641721575466,10.80669212,139.44,139.37,39.7403]
[1641721576166,1.77569212,139.43,139.37,39.7403]
[1641721576969,1.77569212,139.45,139.37,39.7403]
[1641721577169,1.77569212,139.45,139.37,49.0223]
[1641721577368,1.77569212,139.45,139.38,27.66479]
[1641721577968,2.39457799,139.44,139.38,27.66479]
[1641721578869,1.77569212,139.43,139.38,27.66479]
[1641721579771,8.95109484,139.45,139.38,27.66479]
[1641721579970,8.95109484,139.45,139.38,36.15179]
[1641721580177,24.20696834,139.45,139.38,36.15179]
[1641721580373,1.77569212,139.44,139.38,36.15179]
[1641721580573,1.77569212,139.44,139.38,40.15179]
[1641721580775,1.77569212,139.44,139.39,4.07519632]
[1641721581377,1.77569212,139.44,139.42,27.66479]
[1641721581577,1.77569212,139.44,139.42,35.85779]
[1641721581777,1.77569212,139.47,139.42,35.85779]
[1641721583678,2.39496444,139.46,139.42,35.85779]
[1641721584179,1.77569212,139.45,139.42,35.85779]
[1641721585680,1.77569212,139.47,139.42,35.85779]
[1641721586080,17.03156562,139.49,139.42,35.85779]
[1641721586682,1.77569212,139.48,139.42,35.85779]
[1641721586881,4.17242439,139.48,139.42,35.85779]
[1641721587383,1.77569212,139.47,139.42,35.85779]
[1641721587580,4.17242439,139.47,139.43,4.0]
[1641721587783,4.17242439,139.47,139.43,8.07398925]
[1641721587981,15.2558735,139.49,139.43,4.07398925]
[1641721588181,15.2558735,139.49,139.45,4.0]
[1641721588381,15.2558735,139.49,139.45,13.489]
[1641721588581,15.2558735,139.52,139.45,9.489]
[1641721588782,15.2558735,139.52,139.45,13.489]
[1641721588982,15.2558735,139.52,139.45,9.489]
[1641721589185,1.41907944,139.51,139.45,9.489]
[1641721589386,1.41907944,139.51,139.48,27.66479]
[1641721589583,1.41907944,139.51,139.48,35.41579]
[1641721590184,1.41907944,139.52,139.48,35.41579]
[1641721590984,1.41907944,139.52,139.48,27.66479]
[1641721591185,15.2558735,139.53,139.48,38.72079]
[1641721591386,40.08934292,139.56,139.52,27.66479]
[1641721591584,40.08934292,139.56,139.52,36.10579]
[1641721591985,7.16768806,139.6,139.52,40.10579]
[1641721592387,40.08934292,139.61,139.54,4.0]
[1641721592586,0.99211391,139.58,139.54,4.0]
[1641721592987,0.99211391,139.6,139.54,4.0]
[1641721593385,0.99211391,139.6,139.59,27.66479]
[1641721593584,40.08934292,139.64,139.59,27.66479]
[1641721594389,27.66479,139.66,139.59,27.66479]
[1641721595287,87.76357987,139.67,139.59,27.66479]
[1641721595887,91.76357987,139.67,139.59,27.66479]
[1641721596489,4.0,139.66,139.59,27.66479]
[1641721596688,87.76357987,139.67,139.59,27.66479]
[1641721596888,4.0,139.65,139.57,27.66479]
[1641721597089,87.76357987,139.67,139.57,27.66479]
[1641721598091,4.0,139.64,139.57,27.66479]
[1641721598292,11.1653769,139.64,139.57,27.66479]
[1641721598591,7.1653769,139.64,139.57,27.66479]
[1641721599194,47.25471982,139.64,139.57,27.66479]
[1641721599995,7.1653769,139.64,139.57,27.66479]
[1641721600997,40.08934292,139.65,139.57,27.66479]
[1641721602296,47.67449356,139.67,139.57,27.66479]
[1641721602899,51.67449356,139.67,139.57,27.66479]
[1641721603101,47.67449356,139.67,139.57,27.66479]
[1641721604000,4.0,139.65,139.57,27.66479]
[1641721604200,11.462,139.65,139.57,27.66479]
[1641721604399,7.462,139.65,139.57,27.66479]
[1641721605303,51.67449356,139.67,139.57,27.66479]
[1641721605503,47.67449356,139.67,139.57,27.66479]
[1641721607508,47.67449356,139.67,139.6,27.66479]
[1641721609012,0.81430528,139.66,139.6,27.66479]
[1641721609914,9.44330528,139.66,139.6,27.66479]
[1641721610816,7.97916879,139.65,139.6,27.66479]
[1641721611715,0.81430528,139.64,139.6,27.66479]
[1641721612114,0.81430528,139.64,139.57,27.66479]
[1641721615718,0.81430528,139.64,139.6,27.66479]
[1641721620023,40.9036482,139.64,139.6,27.66479]
[1641721620726,0.81430528,139.63,139.6,27.66479]
[1641721620925,0.81430528,139.63,139.57,27.66479]
[1641721621528,40.9036482,139.63,139.57,27.66479]
[1641721622328,15.24653459,139.59,139.57,27.66479]
[1641721622528,15.24653459,139.59,139.55,27.66479]
[1641721622728,22.39553459,139.59,139.51,39.3441]
[1641721622929,29.56347954,139.59,139.51,39.3441]
[1641721623229,15.24653459,139.56,139.51,39.3441]
[1641721623428,22.22853459,139.56,139.48,54.76925836]
[1641721623828,22.22853459,139.56,139.48,42.88704836]
[1641721624028,20.06083987,139.55,139.48,27.66479]
[1641721624229,7.17077193,139.54,139.46,80.98424836]
[1641721624430,4.0,139.53,139.46,42.88704836]
[1641721624629,7.17231486,139.51,139.46,42.88704836]
[1641721625528,0.81430528,139.5,139.46,27.66479]
[1641721625729,6.52730528,139.5,139.43,36.9308]
[1641721625928,6.52730528,139.5,139.42,42.88704836]
[1641721626429,0.81430528,139.49,139.43,4.074066]
[1641721627930,0.81430528,139.5,139.43,4.074066]
[1641721628731,0.81430528,139.51,139.43,4.074066]
[1641721629933,0.81430528,139.51,139.45,27.66479]
[1641721630134,0.81430528,139.52,139.45,27.66479]
[1641721631339,0.81430528,139.52,139.45,35.67979]
[1641721631538,0.81430528,139.52,139.46,4.0733459]
[1641721631738,0.81430528,139.52,139.46,8.0733459]
[1641721631938,0.81430528,139.53,139.51,27.66479]
[1641721632140,0.81430528,139.53,139.51,34.18679]
[1641721632540,0.81430528,139.55,139.51,34.18679]
[1641721632939,0.81430528,139.57,139.51,34.18679]
[1641721634240,16.06083987,139.59,139.51,34.18679]
[1641721634643,0.81430528,139.56,139.51,34.18679]
[1641721635142,0.81430528,139.56,139.51,27.66479]
[1641721635344,3.20137792,139.58,139.51,27.66479]
[1641721635943,3.20137792,139.57,139.51,27.66479]
[1641721636342,0.81430528,139.56,139.51,27.66479]
[1641721637144,0.81430528,139.59,139.51,27.66479]
[1641721638242,2.38792571,139.58,139.51,27.66479]
[1641721639043,0.81430528,139.57,139.51,27.66479]
[1641721640043,7.16974368,139.56,139.51,27.66479]
[1641721640343,0.81430528,139.55,139.47,64.81459]
[1641721640743,0.81430528,139.55,139.48,4.0]
[1641721640949,17.63602254,139.56,139.5,4.0]
[1641721641146,15.24653459,139.56,139.51,4.0]
[1641721641345,15.24653459,139.59,139.51,12.947]
[1641721642046,15.24653459,139.59,139.56,27.66479]
[1641721642247,0.81433073,139.58,139.56,33.57779]
[1641721642647,15.24653459,139.62,139.57,4.0]
[1641721642846,15.24653459,139.62,139.56,33.57779]
[1641721643046,15.24653459,139.62,139.57,4.0]
[1641721643448,15.24653459,139.65,139.57,4.0]
[1641721643647,15.24653459,139.65,139.58,4.0]
[1641721644148,0.81402072,139.64,139.61,27.66479]
[1641721644448,0.81402072,139.64,139.61,35.02779]
[1641721645048,0.81402072,139.67,139.61,35.02779]
[1641721645449,16.06055531,139.67,139.61,35.02779]
[1641721645851,0.81402072,139.66,139.61,35.02779]
[1641721646250,3.19981262,139.66,139.61,35.02779]
[1641721647049,0.81402072,139.65,139.61,35.02779]
[1641721647249,3.19981262,139.65,139.61,35.02779]
[1641721648152,0.81402072,139.64,139.61,35.02779]
[1641721649050,0.81402072,139.66,139.61,35.02779]
[1641721650051,0.81402072,139.67,139.64,27.66479]
[1641721650253,0.81402072,139.67,139.64,34.03279]
[1641721651053,2.38319684,139.66,139.64,34.03279]
[1641721651455,2.38319684,139.66,139.64,27.66479]
[1641721651656,7.16486351,139.65,139.61,27.66479]
[1641721651856,7.97888423,139.65,139.61,27.66479]
[1641721652457,3.19721756,139.64,139.61,27.66479]
[1641721652859,0.81402072,139.63,139.61,27.66479]
[1641721653659,0.81402072,139.65,139.61,27.66479]
[1641721654662,2.38190488,139.64,139.61,27.66479]
[1641721655060,0.81402072,139.63,139.61,27.66479]
[1641721655861,0.81402072,139.66,139.61,27.66479]
[1641721656063,0.81402072,139.66,139.61,34.92979]
[1641721656663,0.81402072,139.67,139.61,34.92979]
[1641721657564,2.38284389,139.66,139.61,34.92979]
[1641721657965,0.81402072,139.65,139.61,34.92979]
[1641721659365,0.81402072,139.65,139.61,27.66479]
[1641721660167,2.38284389,139.64,139.61,27.66479]
[1641721661066,0.81402072,139.63,139.61,27.66479]
[1641721662566,0.81402072,139.66,139.61,27.66479]
[1641721662769,0.81402072,139.66,139.61,33.88979]
[1641721663767,2.38958947,139.65,139.61,33.88979]
[1641721664267,0.81402072,139.64,139.61,33.88979]
[1641721665968,0.81402072,139.66,139.61,33.88979]
[1641721666769,2.39157232,139.65,139.61,27.66479]
[1641721667168,0.81402072,139.64,139.61,27.66479]
[1641721668572,0.81402072,139.64,139.62,27.66479]
[1641721668971,0.81402072,139.65,139.62,27.66479]
[1641721669773,2.3933118,139.64,139.62,27.66479]
[1641721670180,0.81402072,139.63,139.62,27.66479]
[1641721671177,3.20733252,139.63,139.62,27.66479]
[1641721673679,18.45386711,139.63,139.62,27.66479]
[1641721675183,3.20733252,139.63,139.62,27.66479]
[1641721683597,18.43608028,139.63,139.62,27.66479]
[1641721684199,3.20733252,139.63,139.62,27.66479]
[1641721685100,3.20733252,139.63,139.62,35.96179]
[1641721687402,3.20733252,139.63,139.62,27.66479]
[1641721691205,3.20733252,139.63,139.62,36.05479]
[1641721693607,18.43659822,139.63,139.62,36.05479]
[1641721693807,18.43659822,139.63,139.62,27.66479]
[1641721694108,3.20733252,139.63,139.62,27.66479]
[1641721698111,18.43882545,139.63,139.62,27.66479]
[1641721699213,22.43882545,139.63,139.62,27.66479]
[1641721699411,22.43882545,139.63,139.58,27.66479]
[1641721699611,4.0,139.61,139.58,27.66479]
[1641721699811,4.0,139.62,139.58,27.66479]
[1641721700211,23.56209704,139.63,139.58,27.66479]
[1641721700412,0.81402072,139.61,139.58,27.66479]
[1641721700615,15.23689077,139.59,139.58,27.66479]
[1641721700813,15.23689077,139.59,139.52,40.8955]
[1641721701012,22.40483572,139.59,139.52,40.8955]
[1641721701213,15.23689077,139.59,139.52,40.8955]
[1641721701413,0.81402072,139.58,139.52,40.8955]
[1641721701612,15.23689077,139.57,139.52,40.8955]
[1641721701914,15.23689077,139.57,139.53,4.0714371]
[1641721702317,11.98350738,139.56,139.48,15.22225836]
[1641721702513,7.17231486,139.51,139.47,15.22225836]
[1641721702713,15.86331486,139.51,139.47,15.22225836]
[1641721702913,19.86331486,139.51,139.47,15.22225836]
[1641721703111,27.66479,139.5,139.47,15.22225836]
[1641721703313,28.47881072,139.5,139.47,15.22225836]
[1641721703716,30.87212252,139.5,139.43,69.24129]
[1641721703917,0.81402072,139.49,139.43,69.24129]
[1641721704315,0.81402072,139.49,139.44,4.07368105]
[1641721706116,0.81402072,139.49,139.44,13.39368105]
[1641721706319,0.81402072,139.49,139.46,4.0]
[1641721706616,0.81402072,139.49,139.44,17.39368105]
[1641721706818,0.81402072,139.52,139.47,4.07368105]
[1641721707018,0.81402072,139.52,139.47,12.96968105]
[1641721707217,0.81402072,139.53,139.47,8.896]
[1641721708618,0.81402072,139.53,139.48,4.07286009]
[1641721710520,0.81402072,139.53,139.48,13.34186009]
[1641721711435,11.98530689,139.53,139.48,9.269]
[1641721712222,0.81402072,139.52,139.48,9.269]
[1641721712420,0.81402072,139.52,139.44,38.0285]
[1641721713021,0.81402072,139.52,139.45,4.07352298]
[1641721713221,0.81402072,139.52,139.45,9.85352298]
[1641721714221,4.81402072,139.55,139.46,4.07352298]
[1641721714823,0.81402072,139.54,139.46,4.07352298]
[1641721715222,0.81402072,139.54,139.46,31.73831298]
[1641721715423,7.17128617,139.53,139.46,31.73831298]
[1641721715923,0.81402072,139.52,139.44,38.0285]
[1641721716524,4.0,139.51,139.44,38.0285]
[1641721716925,4.0,139.51,139.45,4.07343646]
[1641721717225,31.66479,139.51,139.45,4.07343646]
[1641721717525,0.81402072,139.5,139.45,4.07343646]
[1641721719129,0.81402072,139.5,139.44,38.0285]
[1641721719929,0.81402072,139.5,139.45,4.07364389]
[1641721720729,0.81402072,139.5,139.45,13.15464389]
[1641721721130,27.66479,139.54,139.49,4.0]
[1641721721335,27.66479,139.54,139.49,6.791]
[1641721721731,7.17102904,139.53,139.49,6.791]
[1641721722633,0.81462062,139.52,139.46,27.66479]
[1641721723031,0.81462062,139.52,139.44,69.69329]
[1641721723531,0.81462062,139.52,139.45,4.07313941]
[1641721724132,0.81462062,139.52,139.45,8.07313941]
[1641721724531,0.81462062,139.52,139.45,4.07313941]
[1641721724733,4.81462062,139.52,139.45,4.07313941]
[1641721724932,4.81462062,139.52,139.46,4.07313941]
[1641721725135,27.66479,139.5,139.46,4.07313941]
[1641721725433,27.66479,139.5,139.44,38.0285]
[1641721725833,34.83736208,139.5,139.44,38.0285]
[1641721726033,0.81462062,139.49,139.44,38.0285]
[1641721726834,9.61762062,139.49,139.44,38.0285]
[1641721727334,9.61762062,139.49,139.4,27.66479]
[1641721727335,27.66479,139.47,139.4,27.66479]
[1641721727535,27.66479,139.47,139.4,67.45929]
[1641721727935,0.81462062,139.48,139.4,67.45929]
[1641721728136,0.81462062,139.48,139.4,76.01329]
[1641721728337,0.81462062,139.46,139.41,4.07406495]
[1641721728737,0.81462062,139.49,139.41,4.07406495]
[1641721730239,0.81462062,139.49,139.44,4.0]
[1641721730439,0.81462062,139.49,139.44,10.197]
[1641721730642,0.81462062,139.49,139.44,6.197]
[1641721730838,0.81462062,139.49,139.45,4.07406495]
[1641721731239,0.81462062,139.51,139.45,4.07406495]
[1641721732042,0.81462062,139.51,139.44,51.70276495]
[1641721732242,2.39933331,139.5,139.44,51.70276495]
[1641721732541,2.39933331,139.5,139.45,8.07406495]
[1641721732744,2.39933331,139.5,139.45,4.07406495]
[1641721732942,0.81462062,139.49,139.46,4.07406495]
[1641721733842,0.81462062,139.49,139.45,4.07406495]
[1641721734642,0.81462062,139.51,139.45,4.07406495]
[1641721740249,2.40198994,139.5,139.45,4.07406495]
[1641721740650,0.81462062,139.49,139.45,4.07406495]
[1641721742951,0.81462062,139.5,139.45,4.07406495]
[1641721743352,4.0,139.47,139.43,15.22225836]
[1641721743650,4.0,139.47,139.41,15.22225836]
[1641721743851,27.66479,139.45,139.41,15.22225836]
[1641721744454,0.81462062,139.44,139.41,15.22225836]
[1641721745156,3.2168683,139.44,139.37,52.69395836]
[1641721745357,3.2168683,139.44,139.37,15.22225836]
[1641721745658,0.81462062,139.43,139.38,4.07480386]
[1641721746658,0.81462062,139.44,139.37,4.07480386]
[1641721746859,0.81462062,139.44,139.37,15.61780386]
[1641721747358,0.81462062,139.44,139.38,4.07480386]
[1641721747558,0.81462062,139.44,139.38,8.07480386]
[1641721747757,0.81462062,139.44,139.41,4.0]
[1641721747959,0.81462062,139.44,139.43,4.0]
[1641721748161,0.81462062,139.44,139.42,4.0]
[1641721748358,0.81462062,139.46,139.42,4.0]
[1641721748660,0.81462062,139.46,139.43,4.07424851]
[1641721749662,0.81462062,139.47,139.42,4.07424851]
[1641721750262,4.0,139.46,139.42,4.07424851]
[1641721750564,6.39771024,139.46,139.39,4.07424851]
[1641721750962,0.81462062,139.45,139.39,4.07424851]
[1641721752162,0.81462062,139.47,139.39,4.07424851]
[1641721752364,4.81462062,139.47,139.39,9.77724851]
[1641721752764,7.17488789,139.46,139.39,9.77724851]
[1641721752964,10.38649638,139.46,139.4,4.07424851]
[1641721753365,0.81462062,139.45,139.4,4.07424851]
[1641721754064,0.81462062,139.45,139.42,4.0]
[1641721754264,0.81462062,139.45,139.42,12.67]
[1641721754465,0.81462062,139.45,139.43,4.0]
[1641721754865,0.81462062,139.47,139.43,8.07424851]
[1641721755366,0.81462062,139.47,139.44,4.07424851]
[1641721756166,0.81462062,139.48,139.43,4.07424851]
[1641721756867,0.81462062,139.48,139.43,46.89174851]
[1641721757066,0.81462062,139.5,139.46,4.0]
[1641721757267,0.81462062,139.5,139.46,11.519]
[1641721757667,0.81462062,139.51,139.46,11.519]
[1641721757869,0.81462062,139.51,139.5,4.0]
[1641721758069,0.81462062,139.51,139.5,7.035]
[1641721758269,15.23689077,139.53,139.5,7.035]
[1641721758670,15.23689077,139.55,139.5,7.035]
[1641721759570,2.39414608,139.55,139.5,7.035]
[1641721759771,0.81448597,139.54,139.5,7.035]
[1641721761572,0.81448597,139.55,139.5,7.035]
[1641721762272,2.39314902,139.54,139.5,7.035]
[1641721762672,2.39314902,139.54,139.46,27.66479]
[1641721762873,0.81448597,139.53,139.46,27.66479]
[1641721763272,0.81448597,139.53,139.47,4.07307108]
[1641721764572,42.90168077,139.55,139.47,4.07307108]
[1641721764573,0.81448597,139.54,139.47,4.07307108]
[1641721764975,0.81448597,139.52,139.48,4.0]
[1641721765175,0.81448597,139.52,139.47,8.07307108]
[1641721765377,0.81448597,139.54,139.46,27.66479]
[1641721765576,2.39304092,139.53,139.46,31.66479]
[1641721765876,2.39304092,139.53,139.47,4.07256058]
[1641721766276,0.81448597,139.52,139.47,4.07256058]
[1641721766478,0.81448597,139.52,139.47,8.07256058]
[1641721766678,0.81448597,139.52,139.47,4.07256058]
[1641721767078,0.81448597,139.54,139.47,4.07256058]
[1641721768082,2.39254844,139.53,139.47,40.30096058]
[1641721768281,27.66479,139.51,139.47,36.2284]
[1641721768484,27.66479,139.51,139.43,27.66479]
[1641721768783,0.81448597,139.5,139.43,60.80629]
[1641721768981,14.18248597,139.5,139.43,60.80629]
[1641721769181,14.18248597,139.5,139.44,4.07390471]
[1641721769582,4.0,139.48,139.43,27.66479]
[1641721770182,0.81448597,139.47,139.43,27.66479]
[1641721770382,13.74548597,139.47,139.43,27.66479]
[1641721770582,9.74548597,139.47,139.43,27.66479]
[1641721770784,12.13903388,139.47,139.43,27.66479]
[1641721770984,0.81448597,139.46,139.43,27.66479]
[1641721772185,4.81448597,139.47,139.43,27.66479]
[1641721772684,0.81448597,139.46,139.38,70.1925]
[1641721773084,4.0,139.45,139.39,4.07504258]
[1641721773688,0.81448597,139.44,139.39,4.07504258]
[1641721773989,4.0,139.43,139.39,4.07504258]
[1641721774187,4.0,139.42,139.39,4.07504258]
[1641721774388,4.0,139.41,139.35,4.07504258]
[1641721774588,11.17849323,139.39,139.35,4.07504258]
[1641721774789,14.20049323,139.39,139.35,4.07504258]
[1641721774990,14.20049323,139.39,139.32,15.22225836]
[1641721775389,18.20049323,139.39,139.32,15.22225836]
[1641721775590,0.81448597,139.38,139.32,15.22225836]
[1641721775791,0.81448597,139.38,139.31,36.1058]
[1641721776290,4.0,139.37,139.28,15.22225836]
[1641721776493,27.66479,139.34,139.28,15.22225836]
[1641721776692,36.64279,139.34,139.29,4.07761791]
[1641721777193,0.81448597,139.33,139.28,4.07761791]
[1641721777594,0.81448597,139.33,139.29,4.0]